bitfinex-derivatives/quotes_BTCF0:USTF0_20250812
["timestamp","ask_amount","ask_price","bid_price","bid_amount"]
[1755033652462,0.96579977,120130.0,120120.0,0.70861917]
[1755033652665,0.4510618,120130.0,120120.0,0.1958812]
[1755033658478,0.3678106,120130.0,120120.0,0.1958812]
[1755033658679,0.3678106,120130.0,120120.0,0.5566812]
[1755033660981,0.3678106,120130.0,120120.0,1.01410137]
[1755033661583,0.3678106,120130.0,120120.0,0.5566812]
[1755033661881,0.3678106,120130.0,120120.0,1.01410137]
[1755033662583,0.3678106,120130.0,120120.0,1.02386148]
[1755033662784,0.3678106,120130.0,120120.0,0.56644131]
[1755033666287,0.3678106,120130.0,120120.0,0.5566812]
[1755033666478,0.3678106,120130.0,120120.0,0.56644131]
[1755033667085,0.3678106,120130.0,120120.0,0.56644133]
[1755033667584,0.3678106,120130.0,120120.0,0.20564133]
[1755033669285,1.20485583,120130.0,120120.0,0.12239013]
[1755033669483,1.20485583,120130.0,120120.0,0.98432133]
[1755033669784,0.84405583,120130.0,120120.0,0.98432133]
[1755033670789,0.38663566,120130.0,120120.0,0.98432133]
[1755033670989,0.84405583,120130.0,120120.0,0.98432133]
[1755033671588,0.84405583,120130.0,120120.0,0.9745612]
[1755033672184,0.38663566,120130.0,120120.0,0.9745612]
[1755033672389,1.88663566,120130.0,120120.0,0.9745612]
[1755033672888,2.34405583,120130.0,120120.0,0.9745612]
[1755033673292,1.88663566,120130.0,120120.0,0.9745612]
[1755033673486,2.34405583,120130.0,120120.0,0.9745612]
[1755033674189,1.88663566,120130.0,120120.0,0.9745612]
[1755033674388,2.34405583,120130.0,120120.0,0.9745612]
[1755033674694,2.40129425,120130.0,120120.0,1.48921979]
[1755033676190,1.88663566,120130.0,120120.0,1.48921979]
[1755033676696,2.40129425,120130.0,120120.0,1.48921979]
[1755033677394,2.40129425,120130.0,120120.0,0.9745612]
[1755033677592,2.76209425,120130.0,120120.0,0.9745612]
[1755033677892,2.40129425,120130.0,120120.0,1.48921979]
[1755033679192,2.40129425,120130.0,120120.0,0.9745612]
[1755033679395,2.40129425,120130.0,120120.0,1.48921979]
[1755033681796,2.40129425,120130.0,120120.0,0.002]
[1755033681991,2.76209425,120130.0,120120.0,0.8639309]
[1755033682181,1.88663566,120130.0,120120.0,0.8639309]
[1755033682387,2.40129425,120130.0,120120.0,1.48803949]
[1755033684496,2.40129425,120130.0,120120.0,0.9733809]
[1755033684697,2.40129425,120130.0,120120.0,1.48803949]
[1755033684996,0.37185566,120130.0,120120.0,1.84883949]
[1755033685188,0.88651425,120130.0,120120.0,1.84883949]
[1755033685394,0.90069425,120130.0,120120.0,1.84883949]
[1755033685588,2.40069425,120130.0,120120.0,1.48803949]
[1755033685789,2.40069425,120130.0,120120.0,1.84883949]
[1755033687090,2.40069425,120130.0,120120.0,1.3341809]
[1755033687290,1.70535526,120130.0,120120.0,2.36349808]
[1755033687498,1.70535526,120130.0,120120.0,1.84883949]
[1755033687796,1.56578506,120130.0,120120.0,2.36349808]
[1755033688098,1.69714896,120130.0,120120.0,1.84883949]
[1755033688495,1.71132896,120130.0,120120.0,1.84883949]
[1755033688697,1.71132896,120130.0,120120.0,1.3341809]
[1755033688886,1.71132896,120130.0,120120.0,1.84883949]
[1755033689595,2.22598755,120130.0,120120.0,1.84883949]
[1755033691298,1.71132896,120130.0,120120.0,1.84883949]
[1755033693194,1.71132896,120130.0,120120.0,1.3341809]
[1755033693388,1.71132896,120130.0,120120.0,1.84883949]
[1755033694005,2.22598755,120130.0,120120.0,1.84883949]
[1755033694804,2.22598755,120130.0,120120.0,1.3341809]
[1755033694997,2.22598755,120130.0,120120.0,1.84883949]
[1755033696102,1.71132896,120130.0,120120.0,1.84883949]
[1755033696402,2.22598755,120130.0,120120.0,1.84883949]
[1755033697706,2.20716249,120130.0,120120.0,1.84883949]
[1755033699407,1.60926,120130.0,120120.0,1.84883949]
[1755033699702,2.20716249,120130.0,120120.0,1.84883949]
[1755033701301,2.20716249,120130.0,120120.0,1.3341809]
[1755033701501,2.20716249,120130.0,120120.0,1.84883949]
[1755033701702,1.6925039,120130.0,120120.0,1.84883949]
[1755033703011,0.11765,120150.0,120140.0,0.194327]
[1755033703207,0.11765,120150.0,120140.0,1.84822559]
[1755033703597,2.13230859,120150.0,120140.0,1.84822559]
[1755033703804,1.61765,120150.0,120140.0,1.84822559]
[1755033704105,1.7008801,120150.0,120140.0,1.84822559]
[1755033704305,2.13330859,120150.0,120140.0,1.84822559]
[1755033704900,1.7018801,120150.0,120140.0,1.84822559]
[1755033705303,1.7028801,120150.0,120140.0,1.84822559]
[1755033706008,2.21753869,120150.0,120140.0,1.84822559]
[1755033706214,2.21653869,120150.0,120140.0,1.85022559]
[1755033706905,2.21553869,120150.0,120140.0,1.85222559]
[1755033707100,1.7008801,120150.0,120140.0,1.85222559]
[1755033707305,2.21553869,120150.0,120140.0,1.85222559]
[1755033709409,2.21553869,120150.0,120140.0,1.337567]
[1755033709709,2.21553869,120150.0,120140.0,1.85222559]
[1755033716807,2.21553869,120150.0,120140.0,1.82807559]
[1755033717012,2.73019728,120150.0,120140.0,1.226157]
[1755033717313,2.21553869,120150.0,120140.0,1.226157]
[1755033718012,2.21553869,120150.0,120140.0,1.239897]
[1755033718309,2.21553869,120150.0,120140.0,1.76539559]
[1755033718509,2.21553869,120150.0,120140.0,1.80028559]
[1755033718712,2.21553869,120150.0,120140.0,1.80128559]
[1755033719617,2.21553869,120150.0,120140.0,1.286627]
[1755033719819,1.7008801,120150.0,120140.0,1.286627]
[1755033720011,2.21553869,120150.0,120140.0,1.80128559]
[1755033720212,1.7008801,120150.0,120140.0,1.285627]
[1755033720512,2.21553869,120150.0,120140.0,1.80228559]
[1755033721516,2.21553869,120150.0,120140.0,1.80328559]
[1755033722512,1.7008802,120150.0,120140.0,1.80328559]
[1755033722717,2.21553879,120150.0,120140.0,1.80328559]
[1755033723413,1.7008802,120150.0,120140.0,1.80328559]
[1755033723720,2.21553879,120150.0,120140.0,1.80328559]
[1755033724519,2.21553879,120150.0,120140.0,1.288627]
[1755033724718,2.21553879,120150.0,120140.0,1.80328559]
[1755033724915,2.21553879,120150.0,120140.0,1.288627]
[1755033725121,2.21553879,120150.0,120140.0,1.80328559]
[1755033725521,2.21553879,120150.0,120140.0,1.288627]
[1755033725712,1.7008802,120150.0,120140.0,1.80328559]
[1755033726423,2.21553879,120150.0,120140.0,1.80328559]
[1755033726819,1.7008802,120150.0,120140.0,1.80328559]
[1755033727223,2.21553879,120150.0,120140.0,1.80328559]
[1755033727633,2.21553879,120150.0,120140.0,1.288627]
[1755033727934,1.7008802,120150.0,120140.0,1.80328559]
[1755033728122,2.21553879,120150.0,120140.0,1.80328559]
[1755033728917,1.7008802,120150.0,120140.0,1.80328559]
[1755033729121,2.21553879,120150.0,120140.0,1.80328559]
[1755033729923,2.21553879,120150.0,120140.0,1.288627]
[1755033730130,2.21553879,120150.0,120140.0,1.80328559]
[1755033730729,2.21553879,120150.0,120140.0,1.288627]
[1755033730928,2.21553879,120150.0,120140.0,1.80328559]
[1755033731832,1.7008802,120150.0,120140.0,1.80328559]
[1755033732034,2.21553879,120150.0,120140.0,1.80328559]
[1755033732332,1.7008802,120150.0,120140.0,1.80328559]
[1755033732836,2.21553879,120150.0,120140.0,1.80328559]
[1755033733041,2.21553879,120150.0,120140.0,1.264477]
[1755033733935,2.21553879,120150.0,120140.0,1.226157]
[1755033734323,2.21553879,120150.0,120140.0,1.240817]
[1755033734526,2.21553879,120150.0,120140.0,1.265397]
[1755033734933,1.7008802,120150.0,120140.0,1.265397]
[1755033735136,2.21553879,120150.0,120140.0,1.265397]
[1755033735937,2.21553879,120150.0,120140.0,1.78005559]
[1755033736634,2.21553879,120150.0,120140.0,1.265397]
[1755033736937,2.21553879,120150.0,120140.0,1.78005559]
[1755033737143,1.7008802,120150.0,120140.0,1.78005559]
[1755033737525,2.21553879,120150.0,120140.0,2.16580559]
[1755033738537,2.21553879,120150.0,120140.0,1.80500559]
[1755033738739,1.7008802,120150.0,120140.0,1.85353559]
[1755033738939,2.21553879,120150.0,120140.0,1.49273559]
[1755033739434,2.21553879,120150.0,120140.0,0.113307]
[1755033739634,1.7008802,120150.0,120140.0,0.864797]
[1755033739838,2.21553879,120150.0,120140.0,0.864797]
[1755033740035,2.21553879,120150.0,120140.0,0.930107]
[1755033740433,2.21553879,120150.0,120140.0,1.313367]
[1755033740742,2.21553879,120150.0,120140.0,1.85297559]
[1755033741533,1.7008802,120150.0,120140.0,1.85297559]
[1755033741736,2.21553879,120150.0,120140.0,1.85297559]
[1755033742437,2.21553879,120150.0,120140.0,1.338317]
[1755033742933,2.21553879,120150.0,120140.0,1.85297559]
[1755033744441,2.21553879,120150.0,120140.0,1.338317]
[1755033744641,2.21553879,120150.0,120140.0,1.85297559]
[1755033748739,2.21553879,120150.0,120140.0,1.338317]
[1755033749040,2.21553879,120150.0,120140.0,1.85297559]
[1755033749339,2.21553879,120150.0,120140.0,1.338317]
[1755033752542,1.7008802,120150.0,120140.0,1.313367]
[1755033752839,2.21553879,120150.0,120140.0,1.313367]
[1755033754243,1.7008802,120150.0,120140.0,1.337887]
[1755033754540,2.21553879,120150.0,120140.0,1.337887]
[1755033754944,2.21553879,120150.0,120140.0,1.85254559]
[1755033755745,2.21553879,120150.0,120140.0,1.337887]
[1755033755939,2.21553879,120150.0,120140.0,1.85254559]
[1755033757844,2.21553879,120150.0,120140.0,1.337887]
[1755033758243,2.21553879,120150.0,120140.0,1.85254559]
[1755033758542,1.7008802,120150.0,120140.0,1.85254559]
[1755033758744,2.21553879,120150.0,120140.0,1.85254559]
[1755033758947,1.6198601,120150.0,120140.0,1.85254559]
[1755033759147,1.6916101,120150.0,120140.0,1.85254559]
[1755033759447,2.20626869,120150.0,120140.0,1.85254559]
[1755033760344,1.6916101,120150.0,120140.0,1.85254559]
[1755033760543,2.20626869,120150.0,120140.0,1.337887]
[1755033760741,2.20626869,120150.0,120140.0,1.85254559]
[1755033760939,2.20626869,120150.0,120140.0,1.337887]
[1755033761445,2.20626869,120150.0,120140.0,1.85254559]
[1755033761840,1.6916101,120150.0,120140.0,1.337887]
[1755033762045,2.20626869,120150.0,120140.0,1.85254559]
[1755033765137,2.12303859,120150.0,120140.0,1.85254559]
[1755033765535,2.12303859,120150.0,120140.0,1.337887]
[1755033765740,2.12303859,120150.0,120140.0,1.95736472]
[1755033765937,2.12303859,120150.0,120140.0,1.85254559]
[1755033766344,2.12303859,120150.0,120140.0,1.95736472]
[1755033766650,2.20626869,120150.0,120140.0,1.95736472]
[1755033766944,2.20626869,120150.0,120140.0,1.85254559]
[1755033767942,2.12303859,120150.0,120140.0,1.85254559]
[1755033769849,2.20626869,120150.0,120140.0,1.85254559]
[1755033770051,2.12303859,120150.0,120140.0,1.85254559]
[1755033770439,1.60838,120150.0,120140.0,1.85254559]
[1755033770751,2.12303859,120150.0,120140.0,1.85254559]
[1755033771349,2.20626869,120150.0,120140.0,1.85254559]
[1755033771550,0.71624869,120150.0,120140.0,1.85254559]
[1755033771739,0.63301859,120150.0,120140.0,1.85254559]
[1755033771941,2.13301859,120150.0,120140.0,1.85254559]
[1755033772141,2.21624869,120150.0,120140.0,1.85254559]
[1755033772852,2.13301859,120150.0,120140.0,1.85254559]
[1755033773053,1.61836,120150.0,120140.0,1.85254559]
[1755033773550,0.66000129,120170.0,120160.0,0.1990315]
[1755033773857,0.1453427,120170.0,120160.0,1.90736009]
[1755033774155,0.71714129,120170.0,120160.0,1.90736009]
[1755033774453,0.71714129,120170.0,120160.0,1.91562724]
[1755033774647,0.71714129,120170.0,120160.0,1.40096865]
[1755033774847,0.71714129,120170.0,120160.0,1.91562724]
[1755033775751,0.71714129,120170.0,120160.0,1.98323708]
[1755033776149,0.71714129,120170.0,120160.0,1.46857849]
[1755033776352,0.71714129,120170.0,120160.0,1.98323708]
[1755033776754,0.71714129,120170.0,120160.0,2.00775708]
[1755033777151,0.2024827,120170.0,120160.0,2.00775708]
[1755033777751,0.63391859,120170.0,120160.0,2.00775708]
[1755033778254,0.71713499,120170.0,120160.0,2.00775708]
[1755033779355,0.63391859,120170.0,120160.0,2.00775708]
[1755033780252,0.71713499,120170.0,120160.0,1.49309849]
[1755033780459,0.63391859,120170.0,120160.0,2.00775708]
[1755033781355,0.11926,120170.0,120160.0,2.00775708]
[1755033781754,0.63391859,120170.0,120160.0,2.00775708]
[1755033782359,0.11926,120170.0,120160.0,2.00775708]
[1755033782660,0.63391859,120170.0,120160.0,2.00775708]
[1755033783664,0.11926,120170.0,120160.0,2.00775708]
[1755033784255,0.63391859,120170.0,120160.0,2.00775708]
[1755033784861,0.71713499,120170.0,120160.0,2.00775708]
[1755033785956,0.63391859,120170.0,120160.0,2.00775708]
[1755033787965,0.11926,120170.0,120160.0,2.00775708]
[1755033788363,0.2009694,120180.0,120170.0,0.1945463]
[1755033788567,0.2009694,120180.0,120170.0,1.07000489]
[1755033788765,0.71562799,120180.0,120170.0,1.07000489]
[1755033789969,0.2009694,120180.0,120170.0,1.07000489]
[1755033790268,0.63241859,120180.0,120170.0,1.07000489]
[1755033790466,0.71562799,120180.0,120170.0,1.07000489]
[1755033790653,0.71662799,120180.0,120170.0,0.5553463]
[1755033790964,0.71762799,120180.0,120170.0,1.07000489]
[1755033791363,0.2029694,120180.0,120170.0,1.07000489]
[1755033791564,0.71762799,120180.0,120170.0,1.07000489]
[1755033791769,0.2029694,120180.0,120170.0,1.07000489]
[1755033792066,0.71762799,120180.0,120170.0,0.5553463]
[1755033792366,0.71762799,120180.0,120170.0,1.07000489]
[1755033793270,1.20847658,120180.0,120170.0,0.8615363]
[1755033793467,0.70793799,120180.0,120170.0,1.48752489]
[1755033793863,0.70793799,120180.0,120170.0,1.84832489]
[1755033794068,0.71762799,120180.0,120170.0,1.84832489]
[1755033796071,0.71762799,120180.0,120170.0,1.3336663]
[1755033796264,0.71762799,120180.0,120170.0,1.2484963]
[1755033796568,0.71762799,120180.0,120170.0,1.2939763]
[1755033801472,0.1888494,120180.0,120170.0,1.79904489]
[1755033801674,0.71762799,120180.0,120170.0,1.79904489]
[1755033802570,0.2029694,120180.0,120170.0,1.79904489]
[1755033802772,0.71762799,120180.0,120170.0,1.79904489]
[1755033805276,0.2029694,120180.0,120170.0,1.79904489]
[1755033805582,0.71762799,120180.0,120170.0,1.79904489]
[1755033806178,0.71762799,120180.0,120170.0,1.2843863]
[1755033806367,0.63441859,120180.0,120170.0,1.79904489]
[1755033806876,0.71762799,120180.0,120170.0,1.79904489]
[1755033807174,0.63441859,120180.0,120170.0,1.79904489]
[1755033807374,0.71762799,120180.0,120170.0,1.79904489]
[1755033808375,0.71762799,120180.0,120170.0,1.2843863]
[1755033808577,0.71762799,120180.0,120170.0,1.79904489]
[1755033808779,0.71762799,120180.0,120170.0,1.2843863]
[1755033808975,0.71762799,120180.0,120170.0,1.79904489]
[1755033811371,0.71762799,120180.0,120170.0,1.2843863]
[1755033811567,0.71762799,120180.0,120170.0,1.79904489]
[1755033811766,0.71762799,120180.0,120170.0,1.2843863]
[1755033811970,0.71762799,120180.0,120170.0,1.79904489]
[1755033812179,0.71762799,120180.0,120170.0,1.2843863]
[1755033812377,0.71762799,120180.0,120170.0,1.79904489]
[1755033812579,0.71762799,120180.0,120170.0,1.2843863]
[1755033812878,0.2029694,120180.0,120170.0,1.2843863]
[1755033813079,0.2029694,120180.0,120170.0,1.79904489]
[1755033813274,0.71762799,120180.0,120170.0,1.79904489]
[1755033822184,0.71762799,120180.0,120170.0,1.2843863]
[1755033822377,0.71762799,120180.0,120170.0,1.79904489]
[1755033822577,0.71762799,120180.0,120170.0,1.2843863]
[1755033822778,0.71762799,120180.0,120170.0,1.79904489]
[1755033823280,0.70305799,120180.0,120170.0,1.2843863]
[1755033823483,0.70305799,120180.0,120170.0,1.79904489]
[1755033823685,0.71707799,120180.0,120170.0,1.79904489]
[1755033825286,0.2024194,120180.0,120170.0,1.79904489]
[1755033825486,0.71707799,120180.0,120170.0,1.79904489]
[1755033826287,0.71707799,120180.0,120170.0,1.2843863]
[1755033826484,0.71707799,120180.0,120170.0,1.79904489]
[1755033830595,0.71707799,120180.0,120170.0,1.2843863]
[1755033830792,0.2024194,120180.0,120170.0,1.79904489]
[1755033830983,0.71707799,120180.0,120170.0,1.79904489]
[1755033831183,0.71707799,120180.0,120170.0,1.2843863]
[1755033831384,0.71707799,120180.0,120170.0,1.79904489]
[1755033832993,0.2024194,120180.0,120170.0,1.79904489]
[1755033833186,0.71707799,120180.0,120170.0,1.79904489]
[1755033836898,1.23173658,120180.0,120170.0,0.5537963]
[1755033837198,1.23173658,120180.0,120170.0,1.3306363]
[1755033837500,0.71707799,120180.0,120170.0,1.3306363]
[1755033837798,0.2024194,120180.0,120170.0,1.3306363]
[1755033838002,0.71707799,120180.0,120170.0,1.84529489]
[1755033838801,0.2024194,120180.0,120170.0,1.3306363]
[1755033839002,0.71707799,120180.0,120170.0,1.84529489]
[1755033840196,1.36036577,120180.0,120170.0,0.4702362]
[1755033840396,1.36036577,120180.0,120170.0,0.8697262]
[1755033841197,1.36036577,120180.0,120170.0,0.7768]
[1755033841404,0.33104859,120180.0,120170.0,0.9087462]
[1755033841597,1.36036577,120180.0,120170.0,0.9253462]
[1755033842991,1.36036577,120180.0,120170.0,0.84213]
[1755033843201,1.36036577,120180.0,120170.0,0.81755]
[1755033843697,1.36036577,120180.0,120170.0,0.9007662]
[1755033844198,1.25036577,120180.0,120170.0,0.9007662]
[1755033844498,0.22104859,120180.0,120170.0,0.9253462]
[1755033844697,0.1308462,120170.0,120160.0,0.00826715]
[1755033844899,0.82797479,120170.0,120160.0,0.8841732]
[1755033845601,0.82797479,120170.0,120160.0,0.80095]
[1755033845804,0.71797479,120170.0,120160.0,0.80095]
[1755033845995,0.81797479,120170.0,120160.0,0.80095]
[1755033846502,0.81797479,120170.0,120160.0,0.8841732]
[1755033847609,0.81797479,120170.0,120160.0,0.9087532]
[1755033847900,0.81797479,120170.0,120160.0,0.84213]
[1755033848107,0.79799099,120170.0,120160.0,0.79907022]
[1755033848494,0.79799099,120170.0,120160.0,0.88229332]
[1755033848710,0.79799099,120170.0,120160.0,0.12038332]
[1755033848910,0.79799099,120170.0,120160.0,0.16156332]
[1755033849298,0.1833324,120170.0,120160.0,0.16156332]
[1755033849610,0.82799099,120170.0,120160.0,0.20797332]
[1755033850113,0.82799099,120170.0,120160.0,0.20897332]
[1755033850502,0.82799099,120170.0,120160.0,0.1969631]
[1755033850810,0.82799099,120170.0,120160.0,0.22298382]
[1755033851311,0.82799099,120170.0,120160.0,0.22398382]
[1755033852010,0.82799099,120170.0,120160.0,0.22498382]
[1755033854309,0.82799099,120170.0,120160.0,0.14176072]
[1755033855014,0.82799099,120170.0,120160.0,0.11697072]
[1755033855214,0.1833324,120170.0,120160.0,0.09535072]
[1755033855414,0.80799099,120170.0,120160.0,0.03928072]
[1755033855614,0.80799099,120170.0,120160.0,0.03002072]
[1755033856316,2.46028958,120170.0,120160.0,0.03002072]
[1755033858012,1.4309724,120170.0,120160.0,0.03002072]
[1755033858315,2.46028958,120170.0,120160.0,0.03002072]
[1755033859918,2.46028958,120170.0,120160.0,0.01701036]
[1755033860118,2.46028958,120170.0,120160.0,0.03002149]
[1755033864025,1.4309724,120170.0,120160.0,0.03002149]
[1755033864324,2.46028958,120170.0,120160.0,0.03002149]
[1755033869426,2.46028958,120170.0,120160.0,0.03002153]
[1755033871413,2.46028958,120170.0,120160.0,0.02902153]
[1755033871619,2.46028958,120170.0,120160.0,0.02890097]
[1755033872326,2.46028958,120170.0,120160.0,0.02690097]
[1755033872517,2.46028958,120170.0,120160.0,0.027905]
[1755033875630,1.4309724,120170.0,120160.0,0.02800819]
[1755033875833,2.46028958,120170.0,120160.0,0.02800819]
[1755033876330,1.4309724,120170.0,120160.0,0.01501036]
[1755033876521,2.46028958,120170.0,120160.0,0.01501036]
[1755033877727,1.68344958,120170.0,120160.0,0.01501036]
[1755033877930,2.46028958,120170.0,120160.0,0.01501036]
[1755033880429,2.46024958,120170.0,120160.0,0.01501036]
[1755033908843,1.68344958,120170.0,120160.0,0.01501036]
[1755033909031,2.45996958,120170.0,120160.0,0.01501036]
[1755033920657,1.4306524,120170.0,120160.0,0.01501036]
[1755033920854,2.45996958,120170.0,120160.0,0.01501036]
[1755033928253,1.68344958,120170.0,120160.0,0.01501036]
[1755033928458,2.45952958,120170.0,120160.0,0.01501036]
[1755033930159,1.4302124,120170.0,120160.0,0.01501036]
[1755033930356,2.45952958,120170.0,120160.0,0.01501036]
[1755033938065,1.32264958,120170.0,120160.0,0.01501036]
[1755033938265,2.09856958,120170.0,120160.0,0.01501036]
[1755033939166,2.45936958,120170.0,120160.0,0.01501036]
[1755033940673,1.68344958,120170.0,120160.0,0.01501036]
[1755033940876,2.45928958,120170.0,120160.0,0.01501036]
[1755033945473,1.05879099,120170.0,120160.0,0.09823376]
[1755033945670,0.69799099,120170.0,120160.0,0.21129376]
[1755033947479,0.82799099,120170.0,120160.0,0.21129376]
[1755033950079,0.81799099,120170.0,120160.0,0.21129376]
[1755033952283,0.69799099,120170.0,120160.0,0.21129376]
[1755033952482,0.80799099,120170.0,120160.0,0.21129376]
[1755033953174,0.80799099,120170.0,120160.0,0.18640376]
[1755033953580,0.80799099,120170.0,120160.0,0.21129376]
[1755033954076,0.82799099,120170.0,120160.0,0.21129376]
[1755033954280,0.1685224,120170.0,120160.0,0.50786376]
[1755033954588,0.69749099,120170.0,120160.0,0.21129376]
[1755033956090,0.1828324,120170.0,120160.0,0.21129376]
[1755033956282,0.69749099,120170.0,120160.0,0.98681376]
[1755033957787,0.69749099,120170.0,120160.0,1.34761376]
[1755033959491,0.1828324,120170.0,120160.0,1.34761376]
[1755033959685,0.69749099,120170.0,120160.0,1.34761376]
[1755033960387,0.71633685,120170.0,120160.0,1.34761376]
[1755033961790,0.20167826,120170.0,120160.0,1.34761376]
[1755033961991,0.71633685,120170.0,120160.0,1.34761376]
[1755033962187,0.71633685,120170.0,120160.0,1.28338376]
[1755033962382,0.71633685,120170.0,120160.0,0.09823376]
[1755033962589,0.82633685,120170.0,120160.0,0.09823376]
[1755033962980,0.82633685,120170.0,120160.0,0.10791376]
[1755033963186,0.82633685,120170.0,120160.0,0.18543376]
[1755033963383,0.82633685,120170.0,120160.0,0.20983376]
[1755033964695,0.82633685,120170.0,120160.0,0.18543376]
[1755033964992,0.83633685,120170.0,120160.0,0.18543376]
[1755033966895,0.83633685,120170.0,120160.0,0.13781376]
[1755033967097,0.83633685,120170.0,120160.0,0.10791376]
[1755033967898,0.83633685,120170.0,120160.0,0.09823376]
[1755033969001,0.83633685,120170.0,120160.0,0.01501036]
[1755033969203,0.83633685,120170.0,120160.0,0.09823376]
[1755033969407,0.81633685,120170.0,120160.0,0.09823376]
[1755033970799,0.81633685,120170.0,120160.0,0.0852234]
[1755033970999,0.81633685,120170.0,120160.0,0.002]
[1755033971500,0.81633685,120170.0,120160.0,0.0852234]
[1755033971901,0.81633685,120170.0,120160.0,0.002]
[1755033972097,1.33099544,120170.0,120160.0,0.002]
[1755033972297,1.69179544,120170.0,120160.0,0.002]
[1755033973603,1.69179544,120170.0,120160.0,0.001]
[1755033974201,0.1051534,120160.0,120150.0,1.0246894]
[1755033974501,1.35192058,120160.0,120150.0,0.2742394]
[1755033974702,1.35192058,120160.0,120150.0,1.0492394]
[1755033974907,0.83726199,120160.0,120150.0,1.0492394]
[1755033975409,0.83726199,120160.0,120150.0,1.0491994]
[1755033975706,0.83726199,120160.0,120150.0,1.0737794]
[1755033976304,0.83726199,120160.0,120150.0,1.0981794]
[1755033976606,0.83726199,120160.0,120150.0,1.0991794]
[1755033977107,0.83726199,120160.0,120150.0,1.1001794]
[1755033977307,0.71726199,120160.0,120150.0,1.1001794]
[1755033979007,0.71726199,120160.0,120150.0,1.0169494]
[1755033981810,0.2026034,120160.0,120150.0,1.0169494]
[1755033982007,0.71726199,120160.0,120150.0,1.0169494]
[1755033984510,0.82726199,120160.0,120150.0,1.0169494]
[1755033987611,0.3126034,120160.0,120150.0,1.0169494]
[1755033987914,0.82726199,120160.0,120150.0,1.0169494]
[1755033988509,0.2026034,120160.0,120150.0,1.0169494]
[1755033988709,0.71726199,120160.0,120150.0,1.0169494]
[1755033989116,0.83726199,120160.0,120150.0,1.0169494]
[1755033989317,0.71726199,120160.0,120150.0,1.0169494]
[1755033989612,1.35192058,120160.0,120150.0,0.8993694]
[1755033990512,1.71272058,120160.0,120150.0,0.002]
[1755033993314,1.71372058,120160.0,120150.0,0.001]
[1755033993619,0.1781303,120150.0,120140.0,0.0842]
[1755033993817,0.6834603,120150.0,120140.0,0.10829]
[1755033994013,1.71277748,120150.0,120140.0,0.10829]
[1755033994327,1.71277748,120150.0,120140.0,0.11669023]
[1755033994617,0.6834603,120150.0,120140.0,0.11669023]
[1755033994812,1.71277748,120150.0,120140.0,0.11669023]
[1755033995117,1.71277748,120150.0,120140.0,0.11769023]
[1755033995812,1.71277748,120150.0,120140.0,0.20092753]
[1755033996213,1.71277748,120150.0,120140.0,0.20192753]
[1755033997020,0.70302889,120150.0,120140.0,0.71658612]
[1755033997718,0.70302889,120150.0,120140.0,1.07738612]
[1755033998917,0.70302889,120150.0,120140.0,0.56272753]
[1755033999112,0.71731889,120150.0,120140.0,0.56272753]
[1755034001123,0.66962889,120150.0,120140.0,0.56272753]
[1755034001313,0.70302889,120150.0,120140.0,0.56272753]
[1755034001715,0.71731889,120150.0,120140.0,0.56272753]
[1755034004520,1.23197748,120150.0,120140.0,0.56272753]
[1755034004715,0.2026603,120150.0,120140.0,0.56272753]
[1755034005113,0.71731889,120150.0,120140.0,0.56272753]
[1755034005611,0.2742108,120160.0,120140.0,1.07738612]
[1755034005818,0.62241199,120160.0,120150.0,1.79575889]
[1755034006218,0.62241199,120160.0,120150.0,1.2811003]
[1755034006415,0.62241199,120160.0,120150.0,1.79575889]
[1755034006618,0.1077534,120160.0,120150.0,1.79575889]
[1755034006814,0.62241199,120160.0,120150.0,1.79575889]
[1755034007019,0.62241199,120160.0,120150.0,1.2811003]
[1755034007214,0.62341199,120160.0,120150.0,1.2811003]
[1755034008118,0.1087534,120160.0,120150.0,1.2811003]
[1755034008315,0.62241199,120160.0,120150.0,1.79875889]
[1755034009026,0.47115886,120170.0,120160.0,0.10829]
[1755034009227,0.98581745,120170.0,120160.0,0.5523134]
[1755034010329,0.98581745,120170.0,120160.0,0.5543134]
[1755034010626,0.98581745,120170.0,120160.0,0.5563134]
[1755034011530,0.80508155,120170.0,120160.0,0.5563134]
[1755034012128,0.81937155,120170.0,120160.0,0.5563134]
[1755034012920,0.24927296,120170.0,120160.0,0.5563134]
[1755034013227,0.01884586,120170.0,120160.0,1.13665116]
[1755034013524,0.64125095,120170.0,120160.0,1.13665116]
[1755034013921,0.12659236,120170.0,120160.0,1.13665116]
[1755034014123,0.64125095,120170.0,120160.0,1.13665116]
[1755034014429,0.53350445,120170.0,120160.0,1.13665116]
[1755034014928,0.01884586,120170.0,120160.0,1.13665116]
[1755034016032,0.0833096,120180.0,120170.0,0.1915065]
[1755034016215,0.59796819,120180.0,120170.0,1.84080509]
[1755034016420,0.62249819,120180.0,120170.0,1.84080509]
[1755034017328,0.62249819,120180.0,120170.0,1.3271465]
[1755034017528,0.65589819,120180.0,120170.0,1.84180509]
[1755034017823,0.59796819,120180.0,120170.0,1.84180509]
[1755034018128,0.62249819,120180.0,120170.0,1.84280509]
[1755034018828,0.1632796,120180.0,120170.0,1.84280509]
[1755034019027,0.67793819,120180.0,120170.0,1.84280509]
[1755034019323,0.69323819,120180.0,120170.0,1.84280509]
[1755034019730,0.1785796,120180.0,120170.0,1.84280509]
[1755034019922,0.69323819,120180.0,120170.0,1.84280509]
[1755034020317,0.71711819,120180.0,120170.0,1.3281465]
[1755034020730,0.2024596,120180.0,120170.0,1.3281465]
[1755034020930,0.71711819,120180.0,120170.0,1.3281465]
[1755034021431,0.2024596,120180.0,120170.0,1.3281465]
[1755034021631,0.71711819,120180.0,120170.0,1.3281465]
[1755034021930,0.59796819,120180.0,120170.0,1.3281465]
[1755034022130,0.1067996,120180.0,120170.0,1.84280509]
[1755034022433,0.65347819,120180.0,120170.0,1.84280509]
[1755034022733,0.69165819,120180.0,120170.0,1.84280509]
[1755034023733,0.69165819,120180.0,120170.0,1.3281465]
[1755034023933,0.70096819,120180.0,120170.0,1.84280509]
[1755034024133,0.71497819,120180.0,120170.0,1.84280509]
[1755034025333,1.72043678,120180.0,120170.0,0.7756]
[1755034025531,1.35963678,120180.0,120170.0,0.002]
[1755034025739,1.72043678,120180.0,120170.0,0.002]
[1755034026729,1.72043678,120180.0,120170.0,0.0842165]
[1755034026943,1.72143678,120180.0,120170.0,0.0832165]
[1755034027136,0.0832165,120170.0,120160.0,1.1064912]
[1755034027336,0.84488509,120170.0,120160.0,1.1064912]
[1755034027532,1.20568509,120170.0,120160.0,0.9400456]
[1755034028636,1.14830178,120170.0,120160.0,0.9400456]
[1755034029037,1.14830178,120170.0,120160.0,0.7736]
[1755034029636,1.14830178,120170.0,120160.0,0.7746]
[1755034029843,0.78750178,120170.0,120160.0,0.7756]
[1755034030340,1.14830178,120170.0,120160.0,0.7756]
[1755034033542,1.14830178,120170.0,120160.0,0.78505]
[1755034034939,1.14830178,120170.0,120160.0,0.8682735]
[1755034035338,1.14830178,120170.0,120160.0,0.8822235]
[1755034035545,1.14830178,120170.0,120160.0,0.9233335]
[1755034037544,1.14830178,120170.0,120160.0,0.9459535]
[1755034037843,1.14830178,120170.0,120160.0,0.9698435]